[Event "*** Titled Tuesday 3|2 Blitz"]
[Site "Chess.com"]
[Date "2015.05.05"]
[Round "7"]
[White "Azzaro25"]
[Black "esr44"]
[Result "1-0"]
[WhiteElo "2378"]
[BlackElo "2056"]
[TimeControl "180+2"]
[EndTime "12:31:24 PDT"]
[Termination "Azzaro25 won by resignation"]

1. e4 {[%clk 0:03:01.9]} 1... c6 {[%clk 0:03:00.8]} 2. Nc3 {[%clk 0:03:02.8]}
2... d5 {[%clk 0:03:02.4]} 3. Nf3 {[%clk 0:03:04.5]} 3... Bg4 {[%clk 0:03:03]}
4. h3 {[%clk 0:03:04.5]} 4... Bh5 {[%clk 0:03:04.6]} 5. exd5 {[%clk 0:03:04.2]}
5... cxd5 {[%clk 0:03:06.5]} 6. g4 {[%clk 0:03:05.2]} 6... Bg6 {[%clk
0:03:07.8]} 7. Bb5+ {[%clk 0:03:01.6]} 7... Nc6 {[%clk 0:03:09.2]} 8. Ne5 {[%clk
0:03:03]} 8... Rc8 {[%clk 0:03:10.7]} 9. d4 {[%clk 0:03:02.6]} 9... e6 {[%clk
0:03:11.7]} 10. h4 {[%clk 0:03:03.1]} 10... f6 {[%clk 0:03:13]} 11. Nxg6 {[%clk
0:03:03.2]} 11... hxg6 {[%clk 0:03:14.9]} 12. Be3 {[%clk 0:03:02.4]} 12... Bb4
{[%clk 0:03:08]} 13. h5 {[%clk 0:03:01.4]} 13... gxh5 {[%clk 0:02:56]} 14. gxh5
{[%clk 0:03:01.1]} 14... f5 {[%clk 0:02:57.4]} 15. Rg1 {[%clk 0:03:00.7]} 15...
Kf8 {[%clk 0:02:38.6]} 16. a3 {[%clk 0:02:54]} 16... Bd6 {[%clk 0:02:20.3]} 17.
Qf3 {[%clk 0:02:38.2]} 17... Nf6 {[%clk 0:02:20.7]} 18. O-O-O {[%clk 0:02:30]}
18... Qa5 {[%clk 0:02:11.2]} 19. h6 {[%clk 0:02:25.7]} 19... gxh6 {[%clk
0:01:59.8]} 20. Rg6 {[%clk 0:02:26.6]} 20... Kf7 {[%clk 0:01:19.8]} 21. Rdg1
{[%clk 0:02:11]} 21... Rcg8 {[%clk 0:01:11.1]} 22. Rxg8 {[%clk 0:02:07.1]} 22...
Rxg8 {[%clk 0:01:13]} 23. Rxg8 {[%clk 0:02:03]} 23... Kxg8 {[%clk 0:01:09]} 24.
Bxc6 {[%clk 0:01:58]} 24... bxc6 {[%clk 0:01:07.4]} 25. Bxh6 {[%clk 0:01:59.7]}
25... Kf7 {[%clk 0:00:34.5]} 26. Qh1 {[%clk 0:01:42.2]} 26... Bxa3 {[%clk
0:00:29.6]} 27. Bd2 {[%clk 0:01:38.3]} 27... Bb4 {[%clk 0:00:23.7]} 28. Kb1
{[%clk 0:01:39.3]} 28... Qb6 {[%clk 0:00:15.3]} 29. Qh4 {[%clk 0:01:38.4]} 29...
Be7 {[%clk 0:00:13.9]} 30. Bg5 {[%clk 0:01:36.8]} 30... c5 {[%clk 0:00:11.1]}
31. Ne2 {[%clk 0:01:37.2]} 31... cxd4 {[%clk 0:00:11.3]} 32. Nxd4 {[%clk
0:01:36.8]} 32... a5 {[%clk 0:00:12.2]} 33. Nf3 {[%clk 0:01:34.7]} 33... Qd6
{[%clk 0:00:09.9]} 34. Bf4 {[%clk 0:01:36]} 34... Qb4 {[%clk 0:00:09.1]} 35.
Ne5+ {[%clk 0:01:32]} 35... Kg8 {[%clk 0:00:03.8]} 36. Qg5+ {[%clk 0:01:30.6]}
36... Kf8 {[%clk 0:00:04.9]} 37. Qh6+ {[%clk 0:01:30.9]} 37... Ke8 {[%clk
0:00:05.2]} 38. Qg6+ {[%clk 0:01:32.5]} 38... Kd8 {[%clk 0:00:05.1]} 39. Nc6+
{[%clk 0:01:34.2]} 39... Kd7 {[%clk 0:00:03.9]} 40. Nxb4 {[%clk 0:01:36.1]}
40... axb4 {[%clk 0:00:05.6]} 41. Bg5 {[%clk 0:01:37.5]} 41... Ne4 {[%clk
0:00:05.6]} 42. Bxe7 {[%clk 0:01:38.9]} 42... Kxe7 {[%clk 0:00:07.4]} 43. f3
{[%clk 0:01:40.4]} 43... Nd2+ {[%clk 0:00:08.2]} 44. Kc1 {[%clk 0:01:42]} 44...
Nxf3 {[%clk 0:00:10.1]} 45. Qg7+ {[%clk 0:01:43.3]} 45... Kd6 {[%clk 0:00:10.4]}
46. Qg3+ {[%clk 0:01:44.4]} 46... Ne5 {[%clk 0:00:12]} 47. c3 {[%clk 0:01:46]}
47... bxc3 {[%clk 0:00:12.9]} 48. bxc3 {[%clk 0:01:47.7]} 48... f4 {[%clk
0:00:08.6]} 49. Qxf4 {[%clk 0:01:49]} 49... Ke7 {[%clk 0:00:08]} 50. Qxe5 {[%clk
0:01:50]} 1-0

[Event "*** Titled Tuesday 3|2 Blitz"]
[Site "Chess.com"]
[Date "2015.05.05"]
[Round "7"]
[White "Konavets"]
[Black "Daniel_Fridman"]
[Result "1-0"]
[WhiteElo "2450"]
[BlackElo "2599"]
[TimeControl "180+2"]
[EndTime "12:31:39 PDT"]
[Termination "Konavets won by resignation"]

1. e4 {[%clk 0:03:01.9]} 1... Nf6 {[%clk 0:03:00.1]} 2. e5 {[%clk 0:02:59.5]}
2... Nd5 {[%clk 0:03:01]} 3. d4 {[%clk 0:03:00.8]} 3... d6 {[%clk 0:03:01.9]} 4.
Nf3 {[%clk 0:03:02.7]} 4... dxe5 {[%clk 0:03:02.7]} 5. Nxe5 {[%clk 0:03:03.7]}
5... Nd7 {[%clk 0:03:04.3]} 6. Nxf7 {[%clk 0:03:01.3]} 6... Kxf7 {[%clk
0:03:06.2]} 7. Qh5+ {[%clk 0:03:02.4]} 7... Ke6 {[%clk 0:03:07.9]} 8. g3 {[%clk
0:03:00.8]} 8... b5 {[%clk 0:03:06.2]} 9. a4 {[%clk 0:02:52.1]} 9... c6 {[%clk
0:03:06.6]} 10. axb5 {[%clk 0:02:51.8]} 10... cxb5 {[%clk 0:03:07.7]} 11. Nc3
{[%clk 0:02:41.1]} 11... N7f6 {[%clk 0:02:52.3]} 12. Bh3+ {[%clk 0:01:52.6]}
12... Kd6 {[%clk 0:02:53.3]} 13. Qe5+ {[%clk 0:01:44.7]} 13... Kc6 {[%clk
0:02:54.2]} 14. Bg2 {[%clk 0:01:46.2]} 14... e6 {[%clk 0:02:41.6]} 15. O-O
{[%clk 0:01:33.5]} 15... b4 {[%clk 0:02:18.6]} 16. Ne4 {[%clk 0:00:43.7]} 16...
Bd6 {[%clk 0:02:00.5]} 17. Nxd6 {[%clk 0:00:43]} 17... Qxd6 {[%clk 0:02:01.3]}
18. c4 {[%clk 0:00:31.4]} 18... bxc3 {[%clk 0:01:54.8]} 19. bxc3 {[%clk
0:00:32.4]} 19... Kd7 {[%clk 0:00:47.5]} 20. c4 {[%clk 0:00:26.7]} 20... Bb7
{[%clk 0:00:47.8]} 21. Ba3 {[%clk 0:00:23.2]} 21... Qxe5 {[%clk 0:00:46.6]} 22.
dxe5 {[%clk 0:00:25.1]} 22... Ng4 {[%clk 0:00:45.7]} 23. cxd5 {[%clk 0:00:26]}
23... Bxd5 {[%clk 0:00:45.9]} 24. Rad1 {[%clk 0:00:10.8]} 24... Nxe5 {[%clk
0:00:43.9]} 25. Rfe1 {[%clk 0:00:08.8]} 25... Nc6 {[%clk 0:00:41.6]} 26. Bxd5
{[%clk 0:00:08.7]} 26... exd5 {[%clk 0:00:43.5]} 27. Rxd5+ {[%clk 0:00:10.3]}
27... Kc7 {[%clk 0:00:45.4]} 28. Rc1 {[%clk 0:00:10.9]} 28... Rac8 {[%clk
0:00:41.9]} 29. Bb2 {[%clk 0:00:08.9]} 29... Rhg8 {[%clk 0:00:39.2]} 30. Be5+
{[%clk 0:00:10.1]} 30... Kb7 {[%clk 0:00:40.4]} 31. Rd7+ {[%clk 0:00:10.9]}
31... Kb6 {[%clk 0:00:38.5]} 32. Bxg7 {[%clk 0:00:12]} 32... a5 {[%clk 0:00:37]}
33. Rb1+ {[%clk 0:00:10.3]} 33... Kc5 {[%clk 0:00:36.6]} 34. Bh6 {[%clk
0:00:11.7]} 34... Rgd8 {[%clk 0:00:32.6]} 35. Be3+ {[%clk 0:00:11.8]} 35... Kc4
{[%clk 0:00:33.9]} 36. Rc1+ {[%clk 0:00:13.2]} 36... Kb5 {[%clk 0:00:32.7]} 37.
Rb7+ {[%clk 0:00:14.3]} 1-0

[Event "*** Titled Tuesday 3|2 Blitz"]
[Site "Chess.com"]
[Date "2015.05.05"]
[Round "7"]
[White "bugsbunny444"]
[Black "Zvonokchess"]
[Result "0-1"]
[WhiteElo "2301"]
[BlackElo "2497"]
[TimeControl "180+2"]
[EndTime "12:31:45 PDT"]
[Termination "Zvonokchess won by checkmate"]

1. Nf3 {[%clk 0:03:01.9]} 1... c5 {[%clk 0:02:58.6]} 2. c4 {[%clk 0:03:03]} 2...
g6 {[%clk 0:02:59.7]} 3. d4 {[%clk 0:03:02.9]} 3... cxd4 {[%clk 0:03:00]} 4.
Nxd4 {[%clk 0:03:03.4]} 4... Nf6 {[%clk 0:03:01]} 5. Nc3 {[%clk 0:03:03.8]} 5...
d5 {[%clk 0:03:02.5]} 6. cxd5 {[%clk 0:02:44.6]} 6... Nxd5 {[%clk 0:03:04.4]} 7.
Bd2 {[%clk 0:02:45.1]} 7... Bg7 {[%clk 0:03:02]} 8. e4 {[%clk 0:02:21.2]} 8...
Nxc3 {[%clk 0:02:34.4]} 9. Bxc3 {[%clk 0:02:22.2]} 9... O-O {[%clk 0:02:35.9]}
10. Bb5 {[%clk 0:01:49]} 10... Qb6 {[%clk 0:02:31.8]} 11. Qa4 {[%clk 0:01:38.8]}
11... a6 {[%clk 0:01:38.5]} 12. Be2 {[%clk 0:01:13.3]} 12... Bd7 {[%clk
0:01:39.1]} 13. Qc4 {[%clk 0:00:56.3]} 13... Nc6 {[%clk 0:00:46.9]} 14. Nxc6
{[%clk 0:00:25.2]} 14... Bxc3+ {[%clk 0:00:43.4]} 15. Qxc3 {[%clk 0:00:27.1]}
15... Bxc6 {[%clk 0:00:43.8]} 16. Bf3 {[%clk 0:00:16.5]} 16... Rac8 {[%clk
0:00:43.6]} 17. Qb3 {[%clk 0:00:12.6]} 17... Bb5 {[%clk 0:00:43.6]} 18. Be2
{[%clk 0:00:06.9]} 18... Qa5+ {[%clk 0:00:43.8]} 19. Kf1 {[%clk 0:00:06.7]}
19... Qd2 {[%clk 0:00:43.5]} 20. Bxb5 {[%clk 0:00:03]} 20... Rc1+ {[%clk
0:00:44.3]} 21. Rxc1 {[%clk 0:00:03.5]} 21... Qxc1+ {[%clk 0:00:46.2]} 22. Ke2
{[%clk 0:00:05.3]} 22... Qxh1 {[%clk 0:00:47.7]} 23. Bd3 {[%clk 0:00:05.7]}
23... Qxg2 {[%clk 0:00:37.4]} 24. Qxb7 {[%clk 0:00:06.9]} 24... Qg4+ {[%clk
0:00:29.6]} 25. f3 {[%clk 0:00:04.5]} 25... Qg2+ {[%clk 0:00:29.3]} 26. Ke3
{[%clk 0:00:06]} 26... Rd8 {[%clk 0:00:27.7]} 27. Qxe7 {[%clk 0:00:04.3]} 27...
Qg1+ {[%clk 0:00:28.7]} 28. Ke2 {[%clk 0:00:04.4]} 28... Qxh2+ {[%clk
0:00:29.8]} 29. Ke3 {[%clk 0:00:04.6]} 29... Qg1+ {[%clk 0:00:30.5]} 30. Ke2
{[%clk 0:00:05.8]} 30... Qd4 {[%clk 0:00:31.9]} 31. Qa3 {[%clk 0:00:04.1]} 31...
h5 {[%clk 0:00:31.3]} 32. Qxa6 {[%clk 0:00:04.9]} 32... Qxb2+ {[%clk 0:00:30.8]}
33. Ke3 {[%clk 0:00:05.4]} 33... Qd4+ {[%clk 0:00:31.9]} 34. Ke2 {[%clk
0:00:06.9]} 34... h4 {[%clk 0:00:32.2]} 35. Bc4 {[%clk 0:00:08.3]} 35... Qb2+
{[%clk 0:00:29.6]} 36. Ke3 {[%clk 0:00:08.5]} 36... Qd2# {[%clk 0:00:30.4]} 0-1

[Event "*** Titled Tuesday 3|2 Blitz"]
[Site "Chess.com"]
[Date "2015.05.05"]
[Round "7"]
[White "GregShahade"]
[Black "IMRosen"]
[Result "1-0"]
[WhiteElo "2443"]
[BlackElo "2210"]
[TimeControl "180+2"]
[EndTime "12:31:50 PDT"]
[Termination "GregShahade won on time"]

1. e4 {[%clk 0:03:01.9]} 1... e5 {[%clk 0:02:52.9]} 2. Nf3 {[%clk 0:03:02]} 2...
Nc6 {[%clk 0:02:53.4]} 3. Bb5 {[%clk 0:03:03.5]} 3... a6 {[%clk 0:02:52.4]} 4.
Ba4 {[%clk 0:03:04.5]} 4... Nf6 {[%clk 0:02:54.1]} 5. O-O {[%clk 0:03:06]} 5...
Be7 {[%clk 0:02:49.8]} 6. Re1 {[%clk 0:03:06.1]} 6... b5 {[%clk 0:02:51.5]} 7.
Bb3 {[%clk 0:03:06.4]} 7... O-O {[%clk 0:02:53.1]} 8. a4 {[%clk 0:03:05.3]} 8...
b4 {[%clk 0:02:53.7]} 9. d3 {[%clk 0:03:05.5]} 9... d6 {[%clk 0:02:51]} 10. Nbd2
{[%clk 0:03:05.5]} 10... Rb8 {[%clk 0:02:48.2]} 11. h3 {[%clk 0:03:03.5]} 11...
Re8 {[%clk 0:02:49.2]} 12. Nc4 {[%clk 0:03:02.6]} 12... h6 {[%clk 0:02:38.4]}
13. Be3 {[%clk 0:03:03.2]} 13... Bf8 {[%clk 0:02:39.3]} 14. Qd2 {[%clk
0:03:00.3]} 14... Be6 {[%clk 0:02:37.6]} 15. a5 {[%clk 0:02:54.3]} 15... Nh5
{[%clk 0:02:29.6]} 16. Ba4 {[%clk 0:02:42.3]} 16... Bd7 {[%clk 0:02:27.9]} 17.
c3 {[%clk 0:02:30.6]} 17... bxc3 {[%clk 0:02:17.6]} 18. bxc3 {[%clk 0:02:31.1]}
18... Ne7 {[%clk 0:02:19.3]} 19. Qa2 {[%clk 0:02:18.5]} 19... Ng6 {[%clk
0:02:17.5]} 20. Reb1 {[%clk 0:02:15]} 20... Bxa4 {[%clk 0:02:14.7]} 21. Qxa4
{[%clk 0:02:14.6]} 21... Ngf4 {[%clk 0:01:43.2]} 22. Qc2 {[%clk 0:01:49.9]}
22... Re6 {[%clk 0:01:40.1]} 23. Rxb8 {[%clk 0:01:47.6]} 23... Qxb8 {[%clk
0:01:42]} 24. Rb1 {[%clk 0:01:48.8]} 24... Qc8 {[%clk 0:01:43.3]} 25. Nh4 {[%clk
0:01:29.2]} 25... Kh7 {[%clk 0:01:23.3]} 26. d4 {[%clk 0:01:20.7]} 26... Be7
{[%clk 0:01:08]} 27. Nf5 {[%clk 0:01:20.9]} 27... Rg6 {[%clk 0:01:08.2]} 28.
Bxf4 {[%clk 0:01:07.8]} 28... Nxf4 {[%clk 0:01:07.3]} 29. Nce3 {[%clk
0:00:50.8]} 29... Bf6 {[%clk 0:01:05]} 30. Kf1 {[%clk 0:00:51.7]} 30... Qe8
{[%clk 0:00:50.3]} 31. d5 {[%clk 0:00:41.8]} 31... c6 {[%clk 0:00:21.3]} 32. c4
{[%clk 0:00:39.9]} 32... cxd5 {[%clk 0:00:19.7]} 33. cxd5 {[%clk 0:00:39.1]}
33... Qd8 {[%clk 0:00:21.2]} 34. Rb6 {[%clk 0:00:38.4]} 34... Qa8 {[%clk
0:00:12.7]} 35. Qc6 {[%clk 0:00:35.6]} 35... Qh8 {[%clk 0:00:03.9]} 36. Rxa6
{[%clk 0:00:35.6]} 36... h5 {[%clk 0:00:04.3]} 37. Ra8 {[%clk 0:00:35.7]} 37...
Bd8 {[%clk 0:00:03.7]} 38. Qd7 {[%clk 0:00:35.1]} 1-0

[Event "*** Titled Tuesday 3|2 Blitz"]
[Site "Chess.com"]
[Date "2015.05.05"]
[Round "7"]
[White "hellokostya"]
[Black "Nouki"]
[Result "0-1"]
[WhiteElo "2281"]
[BlackElo "2593"]
[TimeControl "180+2"]
[EndTime "12:32:02 PDT"]
[Termination "Nouki won on time"]

1. d4 {[%clk 0:03:01.9]} 1... d5 {[%clk 0:02:58.5]} 2. c4 {[%clk 0:03:03]} 2...
c6 {[%clk 0:02:57.6]} 3. Nf3 {[%clk 0:03:03.5]} 3... Nf6 {[%clk 0:02:49]} 4. e3
{[%clk 0:03:04.4]} 4... Bf5 {[%clk 0:02:48.2]} 5. Nc3 {[%clk 0:03:05.3]} 5... e6
{[%clk 0:02:47]} 6. Nh4 {[%clk 0:03:06.3]} 6... Be4 {[%clk 0:02:48.3]} 7. f3
{[%clk 0:03:06.6]} 7... Bg6 {[%clk 0:02:49.9]} 8. Qb3 {[%clk 0:03:06.9]} 8... b5
{[%clk 0:02:51.1]} 9. cxb5 {[%clk 0:02:57.8]} 9... c5 {[%clk 0:02:47.6]} 10. Bd2
{[%clk 0:02:50.2]} 10... Nbd7 {[%clk 0:02:41.9]} 11. Be2 {[%clk 0:02:44.3]}
11... Bd6 {[%clk 0:02:35.2]} 12. O-O-O {[%clk 0:02:31.3]} 12... c4 {[%clk
0:02:16.4]} 13. Qa4 {[%clk 0:02:31.6]} 13... Nb6 {[%clk 0:02:16.8]} 14. Qa5
{[%clk 0:02:26.6]} 14... O-O {[%clk 0:02:17.7]} 15. Nxg6 {[%clk 0:02:23.3]}
15... hxg6 {[%clk 0:02:17.5]} 16. e4 {[%clk 0:02:22.7]} 16... Be7 {[%clk
0:02:10.2]} 17. Bf4 {[%clk 0:02:03.3]} 17... Qc8 {[%clk 0:02:04.7]} 18. h4
{[%clk 0:01:51.9]} 18... Qb7 {[%clk 0:02:04.2]} 19. g4 {[%clk 0:01:39.8]} 19...
a6 {[%clk 0:01:59.2]} 20. h5 {[%clk 0:01:35]} 20... dxe4 {[%clk 0:00:55.9]} 21.
fxe4 {[%clk 0:01:14.6]} 21... Nxe4 {[%clk 0:00:53.6]} 22. Bf3 {[%clk 0:01:13.7]}
22... axb5 {[%clk 0:00:54.9]} 23. Nxe4 {[%clk 0:00:38.6]} 23... Nd5 {[%clk
0:00:54.8]} 24. Qd2 {[%clk 0:00:37.2]} 24... Rxa2 {[%clk 0:00:55.8]} 25. Qc2
{[%clk 0:00:24.9]} 25... Ra1+ {[%clk 0:00:50]} 26. Kd2 {[%clk 0:00:25.9]} 26...
Bb4+ {[%clk 0:00:51.4]} 27. Nc3 {[%clk 0:00:24.8]} 27... Qb6 {[%clk 0:00:37.3]}
28. Qe4 {[%clk 0:00:17.1]} 28... Ra2 {[%clk 0:00:33.8]} 29. hxg6 {[%clk
0:00:16.6]} 29... Rxb2+ {[%clk 0:00:34.4]} 30. Kc1 {[%clk 0:00:17.8]} 30... Nxc3
{[%clk 0:00:27.8]} 31. gxf7+ {[%clk 0:00:19]} 31... Kxf7 {[%clk 0:00:28.9]} 32.
Qe5 {[%clk 0:00:13.2]} 32... Ba3 {[%clk 0:00:26.2]} 33. Qh5+ {[%clk 0:00:11.8]}
33... Ke7 {[%clk 0:00:25.8]} 34. Qg5+ {[%clk 0:00:08.1]} 34... Ke8 {[%clk
0:00:21.4]} 35. Qg6+ {[%clk 0:00:07.7]} 35... Kd8 {[%clk 0:00:21.6]} 36. Bg5+
{[%clk 0:00:08.2]} 36... Kc8 {[%clk 0:00:22.2]} 37. Bb7+ {[%clk 0:00:04.9]}
37... Kxb7 {[%clk 0:00:20.8]} 38. Qxg7+ {[%clk 0:00:06.1]} 38... Ka6 {[%clk
0:00:22.3]} 0-1

[Event "*** Titled Tuesday 3|2 Blitz"]
[Site "Chess.com"]
[Date "2015.05.05"]
[Round "7"]
[White "WanderingPuppet"]
[Black "PowerThinking2650"]
[Result "0-1"]
[WhiteElo "2080"]
[BlackElo "2076"]
[TimeControl "180+2"]
[EndTime "12:33:43 PDT"]
[Termination "PowerThinking2650 won by resignation"]

1. e4 {[%clk 0:03:01.9]} 1... e5 {[%clk 0:03:00.2]} 2. Nf3 {[%clk 0:03:02.7]}
2... Nc6 {[%clk 0:03:00.7]} 3. Bb5 {[%clk 0:03:04.3]} 3... a6 {[%clk 0:03:00.6]}
4. Ba4 {[%clk 0:03:05.1]} 4... Nf6 {[%clk 0:03:01.1]} 5. O-O {[%clk 0:03:06.2]}
5... b5 {[%clk 0:03:01.3]} 6. Bb3 {[%clk 0:03:07.2]} 6... Be7 {[%clk 0:03:02.6]}
7. Re1 {[%clk 0:03:06.2]} 7... d6 {[%clk 0:03:01.3]} 8. c3 {[%clk 0:03:04.7]}
8... O-O {[%clk 0:03:01]} 9. h3 {[%clk 0:03:05.9]} 9... Bb7 {[%clk 0:03:01.6]}
10. d4 {[%clk 0:03:01.7]} 10... Re8 {[%clk 0:03:00]} 11. Ng5 {[%clk 0:02:55.9]}
11... Rf8 {[%clk 0:03:00]} 12. a3 {[%clk 0:02:56.8]} 12... h6 {[%clk 0:02:57.8]}
13. Nf3 {[%clk 0:02:42.2]} 13... Re8 {[%clk 0:02:58.5]} 14. Nh4 {[%clk
0:02:39.2]} 14... Bf8 {[%clk 0:02:54.4]} 15. Ng6 {[%clk 0:02:34.2]} 15... d5
{[%clk 0:02:49.5]} 16. Nxf8 {[%clk 0:02:28.4]} 16... Kxf8 {[%clk 0:02:47.5]} 17.
exd5 {[%clk 0:02:26.8]} 17... Nxd5 {[%clk 0:02:46.5]} 18. Qh5 {[%clk 0:02:17.2]}
18... Qd7 {[%clk 0:02:05.3]} 19. Bxh6 {[%clk 0:01:52.5]} 19... gxh6 {[%clk
0:01:53.5]} 20. Qxh6+ {[%clk 0:01:54.4]} 20... Ke7 {[%clk 0:01:54.7]} 21. Qg5+
{[%clk 0:01:42.8]} 21... Kd6 {[%clk 0:01:51.2]} 22. Nd2 {[%clk 0:01:21.2]} 22...
Na5 {[%clk 0:01:51.9]} 23. dxe5+ {[%clk 0:00:49.7]} 23... Kc6 {[%clk 0:01:50.5]}
24. Bc2 {[%clk 0:00:39.7]} 24... Rg8 {[%clk 0:01:46.8]} 25. Qh6+ {[%clk
0:00:36.7]} 25... Qe6 {[%clk 0:01:47.2]} 26. Qh4 {[%clk 0:00:28.2]} 26... Kb6
{[%clk 0:01:41.1]} 27. Nf3 {[%clk 0:00:25.9]} 27... c5 {[%clk 0:01:21.5]} 28. b4
{[%clk 0:00:26.2]} 28... Nc6 {[%clk 0:01:10.8]} 29. bxc5+ {[%clk 0:00:26]} 29...
Kxc5 {[%clk 0:01:12.1]} 30. Nd4 {[%clk 0:00:24.9]} 30... Nxd4 {[%clk 0:01:09]}
31. Qxd4+ {[%clk 0:00:23.8]} 31... Kc6 {[%clk 0:01:10]} 32. Be4 {[%clk
0:00:23.2]} 32... Kc7 {[%clk 0:01:03.6]} 33. c4 {[%clk 0:00:23.6]} 33... Nf4
{[%clk 0:00:36.2]} 34. Bxb7 {[%clk 0:00:18.7]} 34... Nxh3+ {[%clk 0:00:35.8]}
35. Kf1 {[%clk 0:00:17.3]} 35... Kxb7 {[%clk 0:00:32.7]} 36. Qe4+ {[%clk
0:00:16.3]} 36... Kc7 {[%clk 0:00:20.7]} 37. gxh3 {[%clk 0:00:13.4]} 37... Qxh3+
{[%clk 0:00:20.7]} 38. Ke2 {[%clk 0:00:15]} 38... Rad8 {[%clk 0:00:19.9]} 39.
Red1 {[%clk 0:00:13.2]} 39... Qh5+ {[%clk 0:00:19.7]} 40. Ke3 {[%clk 0:00:09.7]}
40... Qh6+ {[%clk 0:00:18.1]} 41. Qf4 {[%clk 0:00:08.3]} 41... Qxf4+ {[%clk
0:00:12.3]} 42. Kxf4 {[%clk 0:00:10.2]} 42... bxc4 {[%clk 0:00:13.6]} 43. Rxd8
{[%clk 0:00:08.5]} 43... Rxd8 {[%clk 0:00:12.8]} 44. Ke4 {[%clk 0:00:07.3]}
44... Kc6 {[%clk 0:00:13.2]} 45. f4 {[%clk 0:00:06.4]} 45... Kc5 {[%clk
0:00:13.1]} 46. f5 {[%clk 0:00:07.5]} 46... c3 {[%clk 0:00:13.4]} 47. e6 {[%clk
0:00:07.3]} 47... fxe6 {[%clk 0:00:13.6]} 48. fxe6 {[%clk 0:00:09.2]} 48... Kc4
{[%clk 0:00:14.9]} 49. Kf5 {[%clk 0:00:08.9]} 49... c2 {[%clk 0:00:14.1]} 50. e7
{[%clk 0:00:09.6]} 50... Rb8 {[%clk 0:00:13.1]} 51. Ke6 {[%clk 0:00:09.7]} 51...
Kc3 {[%clk 0:00:12.1]} 52. Kd7 {[%clk 0:00:08.9]} 52... Kb2 {[%clk 0:00:11.3]}
53. Rg1 {[%clk 0:00:08.9]} 53... c1=Q {[%clk 0:00:11.1]} 54. Rxc1 {[%clk
0:00:09.2]} 54... Kxc1 {[%clk 0:00:12.5]} 55. e8=Q {[%clk 0:00:09.3]} 55... Rxe8
{[%clk 0:00:13.4]} 56. Kxe8 {[%clk 0:00:11.2]} 56... Kb2 {[%clk 0:00:14.6]} 57.
a4 {[%clk 0:00:11.3]} 57... Kb3 {[%clk 0:00:15.7]} 58. a5 {[%clk 0:00:10.6]}
58... Kb4 {[%clk 0:00:16.5]} 59. Kd7 {[%clk 0:00:12.5]} 59... Kxa5 {[%clk
0:00:17.6]} 60. Kd6 {[%clk 0:00:12.8]} 60... Kb4 {[%clk 0:00:18.6]} 61. Kd5
{[%clk 0:00:14.7]} 61... a5 {[%clk 0:00:20.1]} 62. Kd4 {[%clk 0:00:16.6]} 62...
a4 {[%clk 0:00:20.9]} 63. Kd3 {[%clk 0:00:18.5]} 63... Kb3 {[%clk 0:00:22.3]}
0-1